fUSD/lending_fUSD_20260129
["ID","MTS","AMOUNT","RATE_DAILY","PERIOD"]
[403955735,1769691047689,-930.47896868,0.00017418,2]
[403955736,1769691047699,-2252.6,0.00017418,2]
[403955737,1769691047709,-496.0,0.00017419,2]
[403955738,1769691047720,-500.0,0.00017419,2]
[403955739,1769691047730,-597.0,0.00017419,2]
[403955740,1769691047740,-500.0,0.00017419,2]
[403955741,1769691047751,-500.0,0.00017419,2]
[403955742,1769691047759,-431.0,0.00017419,2]
[403955743,1769691047768,-500.0,0.00017419,2]
[403955744,1769691047777,-672.81,0.00017434,2]
[403955745,1769691047786,-500.0,0.00017434,2]
[403955746,1769691047795,-1082.12,0.00017434,2]
[403955747,1769691047804,-500.0,0.00017434,2]
[403955748,1769691047813,-500.0,0.00017434,2]
[403955749,1769691047822,-500.0,0.00017434,2]
[403955750,1769691047831,-260.4103811,0.00017437,2]
[403955751,1769691047839,-59869.08143918,0.0001744,2]
[403955752,1769691047848,-379.0,0.00017459,2]
[403955753,1769691047857,-496.0,0.00017474,2]
[403955754,1769691047866,-500.0,0.00017474,2]
[403955755,1769691047875,-597.0,0.00017474,2]
[403955756,1769691047884,-500.0,0.00017474,2]
[403955757,1769691047893,-500.0,0.00017474,2]
[403955758,1769691047903,-431.0,0.00017474,2]
[403955759,1769691047912,-247.11434116,0.00017474,2]
[403955760,1769691047921,-379.0,0.0001749,2]
[403955761,1769691047930,-2829.34897608,0.0001749,2]
[403955762,1769691047939,-377.0,0.00017492,2]
[403955763,1769691047949,-270.0455652,0.00017492,2]
[403955764,1769691047958,-379.0,0.00017493,2]
[403955765,1769691047967,-379.0,0.00017497,2]
[403955766,1769691047976,-151.0,0.00017497,2]
[403955767,1769691047986,-736.0,0.00017499,2]
[403955768,1769691047995,-324.02907155,0.000175,3]
[403955769,1769691048005,-10000.0,0.000175,2]
[403955770,1769691048014,-259405.78343803,0.000175,3]
[403955771,1769691048023,-5600.0,0.000175,6]
[403955772,1769691048032,-378.0,0.00017506,2]
[403955773,1769691048041,-242.5,0.00017511,2]
[403955774,1769691048051,-496.0,0.00017528,2]
[403955775,1769691048060,-204.87785058,0.00017528,2]
[403955776,1769691048068,-597.0,0.00017528,2]
[403955777,1769691048078,-500.0,0.00017528,2]
[403955778,1769691048087,-500.0,0.00017528,2]
[403955779,1769691048096,-431.0,0.00017528,2]
[403955780,1769691048105,-500.0,0.00017532,2]
[403955781,1769691048114,-1600.0,0.00017534,2]
[403955782,1769691048123,-280.03725112,0.00017547,2]
[403955783,1769691048134,-150.65763047,0.00017577,2]
[403955784,1769691048143,-496.0,0.00017583,2]
[403955785,1769691048152,-597.0,0.00017583,2]
[403955786,1769691048161,-500.0,0.00017583,2]
[403955787,1769691048170,-500.0,0.00017583,2]
[403955788,1769691048179,-431.0,0.00017583,2]
[403955789,1769691048187,-161.0,0.000176,2]
[403955790,1769691048197,-161.0,0.000176,2]
[403955791,1769691048209,-5600.0,0.000176,6]
[403955792,1769691048219,-290.39862941,0.00017602,2]
[403955793,1769691048228,-378.0,0.00017609,2]
[403955794,1769691048237,-379.0,0.00017614,2]
[403955795,1769691048245,-2000.0,0.00017616,2]
[403955796,1769691048255,-1949.67214595,0.00017616,2]
[403955797,1769691048264,-2000.0,0.00017616,2]
[403955798,1769691048273,-2000.0,0.00017616,2]
[403955799,1769691048282,-1337.06630886,0.00017616,2]
[403955800,1769691048293,-1119.40917961,0.00017616,2]
[403955801,1769691048302,-2000.0,0.00017616,2]
[403955802,1769691048312,-2000.0,0.00017616,2]
[403955803,1769691048321,-2000.0,0.00017616,2]
[403955804,1769691048331,-379.0,0.00017627,2]
[403955805,1769691048340,-1206.06233242,0.0001763,2]
[403955806,1769691048349,-496.0,0.00017638,2]
[403955807,1769691048360,-597.0,0.00017638,2]
[403955808,1769691048372,-500.0,0.00017638,2]
[403955809,1769691048382,-500.0,0.00017638,2]
[403955810,1769691048392,-431.0,0.00017638,2]
[403955811,1769691048403,-450.9177481,0.0001765,2]
[403955812,1769691048412,-217.15233878,0.00017655,2]
[403955813,1769691048423,-217.15233878,0.00017655,2]
[403955814,1769691048434,-885.86649465,0.00017655,2]
[403955815,1769691048444,-181.08010149,0.00017655,2]
[403955816,1769691048453,-217.15233878,0.00017655,2]
[403955817,1769691048463,-151.0,0.00017655,2]
[403955818,1769691048472,-151.6879126,0.00017655,2]
[403955819,1769691048481,-301.1433787,0.00017657,2]
[403955820,1769691048491,-2812.0,0.00017661,2]
[403955821,1769691048501,-185.35,0.00017669,2]
[403955822,1769691048510,-379.0,0.00017684,2]
[403955823,1769691048520,-2252.6,0.00017692,2]
[403955824,1769691048528,-496.0,0.00017693,2]
[403955825,1769691048539,-597.0,0.00017693,2]
[403955826,1769691048549,-500.0,0.00017693,2]
[403955827,1769691048558,-500.0,0.00017693,2]
[403955828,1769691048568,-431.0,0.00017693,2]
[403955829,1769691048577,-150.0,0.00017699,2]
[403955830,1769691048587,-5600.0,0.000177,6]
[403955831,1769691048596,-25000.0,0.00017715,3]
[403955832,1769691048606,-25000.0,0.00017724,3]
[403955833,1769691048615,-25000.0,0.00017733,3]
[403955834,1769691048624,-377.0,0.00017737,2]
[403955835,1769691048634,-2812.0,0.00017738,2]
[403955836,1769691048644,-25000.0,0.00017742,3]
[403955837,1769691048653,-496.0,0.00017748,2]
[403955838,1769691048662,-597.0,0.00017748,2]
[403955839,1769691048671,-500.0,0.00017748,2]
[403955840,1769691048680,-571.64096607,0.00017748,2]
[403955841,1769691048689,-431.0,0.00017748,2]
[403955842,1769691048698,-25000.0,0.0001775,3]
[403955843,1769691048707,-150.0,0.00017754,2]
[403955844,1769691048717,-378.0,0.00017758,2]
[403955845,1769691048726,-25000.0,0.00017759,3]
[403955846,1769691048735,-25000.0,0.00017768,3]
[403955847,1769691048745,-25000.0,0.00017777,3]
[403955848,1769691048754,-25000.0,0.00017786,3]
[403955849,1769691048764,-435.26878212,0.00017788,2]
[403955850,1769691048773,-672.81,0.00017791,2]
[403955851,1769691048783,-500.0,0.00017791,2]
[403955852,1769691048792,-1082.12,0.00017791,2]
[403955853,1769691048800,-510.98377513,0.00017791,2]
[403955854,1769691048809,-500.0,0.00017791,2]
[403955855,1769691048818,-500.0,0.00017791,2]
[403955856,1769691048827,-25000.0,0.00017794,3]
[403955857,1769691048837,-500.0,0.00017799,2]
[403955858,1769691048846,-500.54,0.00017799,2]
[403955859,1769691048856,-407.0,0.000178,2]
[403955860,1769691048865,-5600.0,0.000178,6]
[403955861,1769691048874,-496.0,0.00017802,2]
[403955862,1769691048883,-597.0,0.00017802,2]
[403955863,1769691048893,-388.59501602,0.00017802,2]
[403955864,1769691048902,-431.0,0.00017802,2]
[403955865,1769691048911,-25000.0,0.00017803,3]
[403955866,1769691048921,-500.0,0.00017808,2]
[403955867,1769691048930,-150.0,0.00017809,2]
[403955868,1769691048939,-25000.0,0.00017812,3]
[403955869,1769691048948,-245.42,0.00017818,2]
[403955870,1769691048957,-2000.0,0.0001782,2]
[403955871,1769691048966,-25000.0,0.00017821,3]
[403955872,1769691048975,-25000.0,0.0001783,3]
[403955873,1769691048984,-20299.04069465,0.0001783,2]
[403955874,1769691048994,-27465.3225,0.0001783,2]
[403955875,1769691049003,-6363.682,0.0001783,2]
[403955876,1769691049012,-467.542,0.0001783,2]
[403955877,1769691049021,-165.61,0.0001783,2]
[403955878,1769691049031,-378.0,0.00017833,2]
[403955879,1769691049041,-245.42,0.00017833,2]
[403955880,1769691049051,-378.0,0.00017835,2]
[403955881,1769691049060,-174.51,0.00017836,2]
[403955882,1769691049069,-379.0,0.00017838,2]
[403955883,1769691049078,-25000.0,0.00017838,3]
[403955884,1769691049088,-2000.0,0.0001784,2]
[403955885,1769691049097,-151.0,0.0001784,2]
[403955886,1769691049106,-151.0,0.0001784,2]
[403955887,1769691049115,-151.0,0.0001784,2]
[403955888,1769691049124,-151.0,0.0001784,2]
[403955889,1769691049133,-151.0,0.0001784,2]
[403955890,1769691049142,-700.49,0.00017846,2]
[403955891,1769691049152,-672.81,0.00017846,2]
[403955892,1769691049161,-500.0,0.00017846,2]
[403955893,1769691049170,-1082.12,0.00017846,2]
[403955894,1769691049178,-500.0,0.00017846,2]
[403955895,1769691049188,-500.0,0.00017846,2]
[403955896,1769691049197,-25000.0,0.00017847,3]
[403955897,1769691049206,-245.42,0.00017848,2]
[403955898,1769691049215,-2000.0,0.0001785,2]
[403955899,1769691049223,-174.51,0.00017851,2]
[403955900,1769691049232,-200.0,0.00017855,2]
[403955901,1769691049241,-25000.0,0.00017856,3]
[403955902,1769691049250,-200.0,0.00017856,2]
[403955903,1769691049259,-200.0,0.00017856,2]
[403955904,1769691049269,-496.0,0.00017857,2]
[403955905,1769691049278,-597.0,0.00017857,2]
[403955906,1769691049288,-431.0,0.00017857,2]
[403955907,1769691049299,-297.0,0.00017858,2]
[403955908,1769691049309,-500.0,0.00017863,2]
[403955909,1769691049319,-379.0,0.00017863,2]
[403955910,1769691049328,-25000.0,0.00017865,3]
[403955911,1769691049338,-174.51,0.00017866,2]
[403955912,1769691049347,-500.0,0.00017873,2]
[403955913,1769691049358,-500.54,0.00017873,2]
[403955914,1769691049371,-25000.0,0.00017874,3]
[403955915,1769691049381,-379.0,0.00017877,2]
[403955916,1769691049391,-379.0,0.00017881,2]
[403955917,1769691049403,-2812.0,0.00017881,2]
[403955918,1769691049412,-414.0,0.00017882,2]
[403955919,1769691049423,-25000.0,0.00017882,3]
[403955920,1769691049434,-151.0,0.00017888,2]
[403955921,1769691049443,-672.81,0.0001789,2]
[403955922,1769691049452,-500.0,0.0001789,2]
[403955923,1769691049461,-1082.12,0.0001789,2]
[403955924,1769691049470,-500.0,0.0001789,2]
[403955925,1769691049479,-500.0,0.0001789,2]
[403955926,1769691049488,-1349.778348,0.00017891,2]
[403955927,1769691049497,-1349.778348,0.00017891,2]
[403955928,1769691049506,-1349.778348,0.00017891,2]
[403955929,1769691049515,-1349.778348,0.00017891,2]
[403955930,1769691049523,-151.0,0.00017891,2]
[403955931,1769691049533,-151.0,0.00017891,2]
[403955932,1769691049542,-152.459921,0.00017891,2]
[403955933,1769691049550,-25000.0,0.00017891,3]
[403955934,1769691049559,-379.0,0.00017896,2]
[403955935,1769691049569,-10188.0,0.00017898,2]
[403955936,1769691049577,-700.49,0.00017899,2]
[403955937,1769691049586,-604.58205548,0.00017899,2]
[403955938,1769691049595,-500.0,0.00017899,2]
[403955939,1769691049605,-24688.72420621,0.000179,3]
[403955940,1769691049613,-1193.77236727,0.000179,2]
[403955941,1769691049623,-10000.0,0.000179,2]
[403955942,1769691049632,-25000.0,0.000179,3]
[403955943,1769691049641,-6220.0,0.000179,6]
[403955944,1769691049650,-1259.68730294,0.000179,2]
[403955945,1769691049659,-774.00968838,0.000179,2]
[403955946,1769691049668,-59869.08143918,0.000179,2]
[403955947,1769691049677,-930.47896868,0.000179,2]
[403955948,1769691049686,-324.02907155,0.000179,3]
[403955949,1769691049695,-4385.73705089,0.000179,2]
[403955950,1769691049704,-1206.06233242,0.000179,2]
[403955951,1769691049713,-450.9177481,0.000179,2]
[403955952,1769691049722,-500.0,0.00017908,2]
[403955953,1769691049731,-500.54,0.00017908,2]
[403955954,1769691049740,-700.49,0.00017909,2]
[403955955,1769691049749,-672.81,0.00017909,2]
[403955956,1769691049759,-672.81,0.00017909,2]
[403955957,1769691049768,-672.81,0.00017909,2]
[403955958,1769691049777,-234.35719949,0.00017909,2]
[403955959,1769691049786,-1082.12,0.00017909,2]
[403955960,1769691049795,-1082.12,0.00017909,2]
[403955961,1769691049804,-1082.12,0.00017909,2]
[403955962,1769691049814,-365.490164,0.00017909,2]
[403955963,1769691049823,-365.490164,0.00017909,2]
[403955964,1769691049832,-365.490164,0.00017909,2]
[403955965,1769691049841,-151.0,0.00017909,2]
[403955966,1769691049850,-365.490164,0.00017909,2]
[403955967,1769691049860,-151.0,0.00017909,2]
[403955968,1769691049869,-151.0,0.00017909,2]
[403955969,1769691049878,-151.0,0.00017909,2]
[403955970,1769691049888,-500.0,0.00017909,2]
[403955971,1769691049898,-476.54174458,0.00017909,2]
[403955972,1769691049907,-383.69997192,0.00017909,2]
[403955973,1769691049916,-496.0,0.00017912,2]
[403955974,1769691049925,-597.0,0.00017912,2]
[403955975,1769691049934,-431.0,0.00017912,2]
[403955976,1769691049944,-500.0,0.00017918,2]
[403955977,1769691049953,-379.0,0.00017918,2]
[403955978,1769691049962,-2812.0,0.00017958,2]
[403955979,1769691049974,-151.0,0.00017958,2]
[403955980,1769691049983,-151.0,0.00017958,2]
[403955981,1769691049992,-151.0,0.00017958,2]
[403955982,1769691050001,-151.0,0.00017958,2]
[403955983,1769691050011,-153.32539,0.0001796,2]
[403955984,1769691050107,-2252.6,0.00017965,2]
[403955985,1769691050153,-496.0,0.00017967,2]
[403955986,1769691050163,-597.0,0.00017967,2]
[403955987,1769691050172,-431.0,0.00017967,2]
[403955988,1769691050182,-500.0,0.00017972,2]
[403955989,1769691050191,-500.0,0.00017973,2]
[403955990,1769691050201,-500.0,0.00017973,2]
[403955991,1769691050210,-500.0,0.00017973,2]
[403955992,1769691050219,-500.0,0.00017973,2]
[403955993,1769691050229,-500.0,0.00017973,2]
[403955994,1769691050238,-500.0,0.00017973,2]
[403955995,1769691050247,-500.0,0.00017973,2]
[403955996,1769691050256,-500.0,0.00017973,2]
[403955997,1769691050265,-500.0,0.00017973,2]
[403955998,1769691050276,-500.0,0.00017973,2]
[403955999,1769691050285,-504.20951303,0.00017973,2]
[403956000,1769691050294,-500.0,0.00017973,2]
[403956001,1769691050303,-500.0,0.00017973,2]
[403956002,1769691050312,-158.05561362,0.00017973,2]
[403956003,1769691050321,-500.0,0.00017973,2]
[403956004,1769691050330,-500.0,0.00017973,2]
[403956005,1769691050339,-500.0,0.00017973,2]
[403956006,1769691050349,-500.0,0.00017973,2]
[403956007,1769691050359,-515.88206341,0.00017973,2]
[403956008,1769691050370,-500.0,0.00017973,2]
[403956009,1769691050379,-500.0,0.00017973,2]
[403956010,1769691050388,-160.53394236,0.00017973,2]
[403956011,1769691050398,-500.0,0.00017973,2]
[403956012,1769691050410,-160.09303877,0.00017973,2]
[403956013,1769691050421,-500.0,0.00017973,2]
[403956014,1769691050431,-500.0,0.00017973,2]
[403956015,1769691050441,-501.28378078,0.00017973,2]
[403956016,1769691050450,-500.0,0.00017973,2]
[403956017,1769691050459,-500.0,0.00017973,2]
[403956018,1769691050468,-500.0,0.00017973,2]
[403956019,1769691050478,-558.2762163,0.00017973,2]
[403956020,1769691050488,-500.0,0.00017973,2]
[403956021,1769691050496,-500.0,0.00017973,2]
[403956022,1769691050506,-500.0,0.00017973,2]
[403956023,1769691050515,-500.0,0.00017973,2]
[403956024,1769691050524,-502.44429427,0.00017973,2]
[403956025,1769691050533,-500.0,0.00017973,2]
[403956026,1769691050542,-222.93137113,0.00017982,2]
[403956027,1769691050551,-500.0,0.00017982,2]
[403956028,1769691050560,-672.81,0.00017989,2]
[403956029,1769691050569,-672.81,0.00017989,2]
[403956030,1769691050579,-672.81,0.00017989,2]
[403956031,1769691050589,-672.81,0.00017989,2]
[403956032,1769691050599,-673.03859598,0.00017989,2]
[403956033,1769691050609,-1082.12,0.00017989,2]
[403956034,1769691050618,-1082.12,0.00017989,2]
[403956035,1769691050627,-1082.12,0.00017989,2]
[403956036,1769691050636,-1082.12,0.00017989,2]
[403956037,1769691050645,-1082.1608956,0.00017989,2]
[403956038,1769691050655,-151.0,0.0001799,2]
[403956039,1769691050664,-151.0,0.0001799,2]
[403956040,1769691050674,-2829.34897608,0.0001799,2]
[403956041,1769691050684,-2000.0,0.00017994,2]
[403956042,1769691050693,-2000.0,0.00017994,2]
[403956043,1769691050702,-982.348,0.00017994,2]
[403956044,1769691050712,-1000.0,0.00017994,2]
[403956045,1769691050722,-1000.0,0.00017994,2]
[403956046,1769691050731,-1000.0,0.00017994,2]
[403956047,1769691050741,-1000.0,0.00017994,2]
[403956048,1769691050750,-1000.0,0.00017994,2]
[403956049,1769691050760,-1000.0,0.00017994,2]
[403956050,1769691050769,-1000.0,0.00017994,2]
[403956051,1769691050779,-904.623,0.00017994,2]
[403956052,1769691050789,-1000.0,0.00017994,2]
[403956053,1769691050799,-1000.0,0.00017994,2]
[403956054,1769691050809,-1000.0,0.00017994,2]
[403956055,1769691050819,-151.0,0.00017997,2]
[403956056,1769691050828,-5525.1916091,0.00017998,2]
[403956057,1769691050837,-150.0,0.00017999,2]
[403956058,1769691050846,-150.0,0.00017999,2]
[403956059,1769691050857,-150.0,0.00017999,2]
[403956060,1769691050867,-150.0,0.00017999,2]
[403956061,1769691050876,-289.02704058,0.00017999,2]
[403956062,1769691050885,-627.41495303,0.00017999,2]
[403956063,1769691050895,-228.39138238,0.00017999,2]
[403956064,1769691050904,-280.34589968,0.00017999,2]
[403956065,1769691050914,-300.0,0.00017999,2]
[403956066,1769691050923,-700.49,0.00017999,2]
[403956067,1769691050932,-700.49,0.00017999,2]
[403956068,1769691050941,-700.49,0.00017999,2]
[403956069,1769691050951,-700.49,0.00017999,2]
[403956070,1769691050961,-700.49,0.00017999,2]
[403956071,1769691050970,-700.49,0.00017999,2]
[403956072,1769691050981,-700.49,0.00017999,2]
[403956073,1769691050992,-700.49,0.00017999,2]
[403956074,1769691051002,-700.49,0.00017999,2]
[403956075,1769691051012,-700.49,0.00017999,2]
[403956076,1769691051022,-700.49,0.00017999,2]
[403956077,1769691051031,-700.71838547,0.00017999,2]
[403956078,1769691051040,-666.0,0.00017999,2]
[403956079,1769691051051,-151.0,0.00017999,2]
[403956080,1769691051061,-151.0,0.00017999,2]
[403956081,1769691051073,-151.0,0.00017999,2]
[403956082,1769691051084,-300.0,0.00017999,2]
[403956083,1769691051093,-500.0,0.00017999,2]
[403956084,1769691051102,-500.0,0.00017999,2]
[403956085,1769691051113,-500.0,0.00017999,2]
[403956086,1769691051123,-500.0,0.00017999,2]
[403956087,1769691051132,-500.0,0.00017999,2]
[403956088,1769691051141,-500.0,0.00017999,2]
[403956089,1769691051151,-500.0,0.00017999,2]
[403956090,1769691051160,-500.54,0.00017999,2]
[403956091,1769691051169,-500.54,0.00017999,2]
[403956092,1769691051178,-500.54,0.00017999,2]
[403956093,1769691051187,-500.54,0.00017999,2]
[403956094,1769691051196,-500.54,0.00017999,2]
[403956095,1769691051206,-500.54,0.00017999,2]
[403956096,1769691051214,-500.75443347,0.00017999,2]
[403956097,1769691051224,-418.275575,0.00017999,2]
[403956098,1769691051233,-418.275575,0.00017999,2]
[403956099,1769691051242,-151.0,0.00017999,2]
[403956100,1769691051252,-418.275575,0.00017999,2]
[403956101,1769691051261,-151.0,0.00017999,2]
[403956102,1769691051271,-418.275575,0.00017999,2]
[403956103,1769691051280,-151.0,0.00017999,2]
[403956104,1769691051289,-181.381648,0.00017999,2]
[403956105,1769691051298,-500.0,0.00017999,2]
[403956106,1769691051308,-500.0,0.00017999,2]
[403956107,1769691051317,-500.0,0.00017999,2]
[403956108,1769691051326,-666.0,0.00017999,2]
[403956109,1769691051335,-500.0,0.00017999,2]
[403956110,1769691051344,-597.54129764,0.00017999,2]
[403956111,1769691051354,-300.0,0.00017999,2]
[403956112,1769691051367,-316.1231749,0.00017999,2]
[403956113,1769691051376,-666.0,0.00017999,2]
[403956114,1769691051386,-8578959.46750223,0.00018,2]
[403956115,1769691051946,-694.46353124,0.00018,2]
[403956116,1769691051957,-5542.09120788,0.00018,2]
[403956117,1769691051969,-13165.44379314,0.00018,2]
[403956118,1769691051980,-925.93213302,0.00018,2]
[403956119,1769691052384,-2816.86303894,0.00018,2]
[403956120,1769691052395,-2881.16460738,0.00018,2]
[403956121,1769691053143,-370.15832524,0.00018,2]
[403956122,1769691053158,-916.12431947,0.00018,2]
[403956123,1769691053170,-2230265.39604838,0.00018,2]
[403956124,1769691053227,-7839.89557239,0.00018,2]
[403956125,1769691053313,-171969.06657377,0.00018,2]
[403956126,1769691053325,-6251.40605885,0.00018,2]
[403956127,1769691054683,-612.97467943,0.00014578,2]
[403956128,1769691054847,-424.73557206,0.00014578,2]
[403956129,1769691054893,-500.0,0.00014578,2]
[403956130,1769691054905,-1332.38623542,0.00014578,2]
[403956131,1769691054917,-38113.59153354,0.00014578,2]
[403956132,1769691054927,-267203.70803558,0.00018,2]
[403956133,1769691055195,-14018.04427607,0.00014947,2]
[403956134,1769691055207,-7551.0690469,0.00014947,2]
[403956135,1769691055218,-336.44422143,0.00014947,2]
[403956260,1769691494048,2500.0,0.000147,5]
[403956262,1769691495913,5000.0,0.000148,5]
[403956264,1769691498007,7600.0,0.000149,5]
[403956475,1769692012111,-230.02738794,0.000138,2]
[403956477,1769692047275,2000.0,0.000147,5]
[403956478,1769692049302,3196.35905103,0.000148,5]
[403956479,1769692049328,903.64094897,0.000148,5]
[403956480,1769692051399,6200.0,0.000149,5]
[403956488,1769692090617,198.62,0.00013815,3]
[403956506,1769692156094,-635.1788758,0.00013792,2]
[403956511,1769692182525,281.6019209,0.00013776,2]
[403956517,1769692232428,-1115.5,0.00013792,2]
[403956518,1769692232440,-1489.3211242,0.00013792,2]
[403956519,1769692232450,-264.0,0.00013792,2]
[403956521,1769692232459,-195.0,0.00013796,2]
[403956522,1769692232468,-239.92261206,0.000138,2]
[403956523,1769692232478,-175.19283792,0.00013801,2]
[403956525,1769692232487,-417.05340677,0.00013801,2]
[403956527,1769692232497,-250.0,0.00013802,2]
[403956529,1769692232506,-425.8475521,0.00013804,2]
[403956530,1769692232516,-1200.0,0.00013807,2]
[403956531,1769692232527,-250.0,0.00013807,2]
[403956532,1769692232536,-2667.34,0.00013808,2]
[403956533,1769692232545,-300.0,0.00013863,2]
[403956534,1769692232555,-300.0,0.00013863,2]
[403956535,1769692232563,-697.16,0.00013865,2]
[403956536,1769692232572,-500.0,0.00013865,2]
[403956537,1769692232582,-4815.24,0.00013908,2]
[403956538,1769692232591,-200.0,0.00014026,2]
[403956539,1769692232600,-299.99,0.00014026,2]
[403956540,1769692232609,-9999.99,0.00014026,2]
[403956541,1769692232619,-166.66,0.00014104,2]
[403956542,1769692232628,-150.99,0.00014116,2]
[403956543,1769692232637,-150.0,0.00014122,2]
[403956544,1769692232646,-1121.23,0.00014123,2]
[403956545,1769692232657,-9999.99,0.00014123,2]
[403956546,1769692232666,-9999.99,0.00014123,2]
[403956547,1769692232676,-999.99,0.00014123,2]
[403956548,1769692232685,-1805.41,0.00014202,2]
[403956549,1769692232694,-1242.0,0.0001448,2]
[403956550,1769692232704,-163.75117701,0.00014509,2]
[403956551,1769692232713,-1188.0,0.00014509,2]
[403956552,1769692232722,-420.0,0.00014538,2]
[403956553,1769692232730,-833.0,0.00014557,2]
[403956554,1769692232739,-166.66,0.00014569,2]
[403956555,1769692232748,-229.0,0.00014585,2]
[403956556,1769692232762,-751.0,0.00014586,2]
[403956557,1769692232771,-1924.0,0.0001461,2]
[403956558,1769692232780,-763.0,0.00014615,2]
[403956559,1769692232789,-1321.0,0.00014639,2]
[403956560,1769692232799,-501.0,0.00014644,2]
[403956561,1769692232809,-1295.0,0.00014673,2]
[403956562,1769692232818,-1000.0,0.00014727,2]
[403956563,1769692232828,-150.0,0.00014792,2]
[403956564,1769692232837,-500.0,0.00014792,2]
[403956565,1769692232847,-2857.74,0.00014819,2]
[403956566,1769692232857,-500.0,0.00014854,2]
[403956567,1769692232866,-500.0,0.00014854,2]
[403956568,1769692232875,-500.0,0.00014854,2]
[403956569,1769692232888,-500.0,0.00014854,2]
[403956570,1769692232897,-500.0,0.00014854,2]
[403956571,1769692232907,-500.0,0.00014854,2]
[403956572,1769692232916,-500.0,0.00014854,2]
[403956573,1769692232926,-500.0,0.00014854,2]
[403956574,1769692232935,-500.0,0.00014854,2]
[403956575,1769692232945,-500.0,0.00014854,2]
[403956576,1769692232955,-500.0,0.00014867,2]
[403956577,1769692232965,-500.0,0.00014867,2]
[403956578,1769692232975,-500.0,0.00014867,2]
[403956579,1769692232984,-500.0,0.00014867,2]
[403956580,1769692232994,-500.0,0.00014867,2]
[403956581,1769692233004,-500.0,0.00014867,2]
[403956582,1769692233013,-500.0,0.00014867,2]
[403956583,1769692233022,-500.0,0.00014867,2]
[403956584,1769692233032,-500.0,0.00014867,2]
[403956585,1769692233041,-564.91584648,0.00014867,2]
[403956586,1769692233051,-500.0,0.00014867,2]
[403956587,1769692233060,-500.0,0.00014867,2]
[403956588,1769692233070,-500.0,0.00014867,2]
[403956589,1769692233079,-372.70898376,0.00014867,2]
[403956590,1769692233089,-500.0,0.00014867,2]
[403956591,1769692233098,-500.0,0.00014867,2]
[403956592,1769692233107,-17960.72443179,0.00014876,2]
[403956593,1769692233117,-627.41495303,0.00014899,2]
[403956594,1769692233126,-697.16,0.00014949,2]
[403956595,1769692233136,-500.0,0.00014949,2]
[403956596,1769692233146,-6363.682,0.00014975,2]
[403956597,1769692233155,-467.542,0.00014975,2]
[403956598,1769692233164,-500.0,0.00014975,2]
[403956599,1769692233173,-500.0,0.00014975,2]
[403956600,1769692233183,-500.0,0.00014975,2]
[403956601,1769692233193,-604.58205548,0.00014975,2]
[403956602,1769692233202,-500.0,0.00014975,2]
[403956603,1769692233211,-500.0,0.00014975,2]
[403956604,1769692233221,-500.0,0.00014975,2]
[403956605,1769692233231,-500.0,0.00014975,2]
[403956606,1769692233241,-500.0,0.00014975,2]
[403956607,1769692233251,-500.0,0.00014975,2]
[403956608,1769692233260,-500.0,0.00014975,2]